[Event "12th National Amateur Chess-ch 2025"]
[Site "Bihar"]
[Date "2025.03.26"]
[Round "3.17"]
[White "Aayusree Sarkar"]
[Black "Rani Puja"]
[Result "1-0"]
[Annotator "NA RC"]
[ECO "C54"]
[WhiteElo "1677"]
[BlackElo "1558"]
[PlyCount "95"]
[EventDate "2025.03.25"]
[EventCountry "IND"]
[SourceTitle "playchess.com"]
[Source "ChessBase"]
[SourceQuality "1"]
[TimeControl "5400+30"]

1. e4 {[%emt 0:00:05]} e5 {[%emt 0:00:27]} 2. Nf3 {[%emt 0:00:11]} Nc6 {[%emt 0:00:22]} 3. Bc4 {[%emt 0:00:15]} Bc5 {[%emt 0:00:10]} 4. c3 {[%emt 0:00:08]} Nf6 {[%emt 0:00:25]} 5. d4 {[%emt 0:00:10]} exd4 {[%emt 0:00:39]} 6. e5 {[%emt 0:00:13]} d5 {[%emt 0:01:11]} 7. Bb5 {[%emt 0:00:08]} Ne4 {[%emt 0:00:35]} 8. cxd4 {[%emt 0:00:10]} Bb4+ {[%emt 0:00:18]} 9. Bd2 {[%emt 0:01:11]} Nxd2 {[%emt 0:02:46]} 10. Nbxd2 {[%emt 0:00:11]} Bd7 {[%emt 0:01:26]} 11. Bd3 {[%emt 0:01:38]} Bg4 12. Be2 {[%emt 0:14:43]} Bxf3 {[%emt 0:09:31]} 13. gxf3 {[%emt 0:02:53]} Nxd4 {[%emt 0:01:35]} 14. Qa4+ {[%emt 0:01:03]} c6 {[%emt 0:04:20]} 15. Kd1 {[%emt 0:01:39]} Bxd2 {[%emt 0:02:23]} 16. Qxd4 {[%emt 0:01:26]} Ba5 {[%emt 0:02:40]} 17. Qg4 {[%emt 0:02:05]} g6 {[%emt 0:02:53]} 18. Kc2 {[%emt 0:02:23]} Qb6 {[%emt 0:03:10]} 19. Raf1 {[%emt 0:01:16]} Qb4 {[%emt 0:03:20]} 20. Qg5 {[%emt 0:02:19]} Qe7 {[%emt 0:03:54]} 21. f4 {[%emt 0:02:51]} h6 {[%emt 0:06:04]} 22. Qg3 {[%emt 0:08:06]} O-O-O {[%emt 0:02:05]} 23. Kb1 {[%emt 0:02:23]} Kb8 {[%emt 0:02:47]} 24. Rc1 {[%emt 0:01:53]} Ka8 {[%emt 0:05:25]} 25. Rhd1 {[%emt 0:01:03]} g5 {[%emt 0:04:36]} 26. Rd3 {[%emt 0:05:59]} gxf4 {[%emt 0:03:45]} 27. Qxf4 {[%emt 0:00:42]} Rde8 {[%emt 0:02:26]} 28. Qa4 {[%emt 0:06:07]} Qxe5 {[%emt 0:08:52]} 29. Rc2 {[%emt 0:17:11]} Bb6 {[%emt 0:02:10]} 30. Rb3 {[%emt 0:01:14]} Qc7 {[%emt 0:05:38]} 31. Qh4 {[%emt 0:06:35]} Re4 {[%emt 0:06:24]} 32. Qh5 {[%emt 0:12:03]} Bxf2 {[%emt 0:05:33]} 33. Rf3 {[%emt 0:01:32]} Rf4 {[%emt 0:01:52]} 34. Qxd5 {[%emt 0:01:35]} Rd8 {[%emt 0:05:15]} 35. Qh5 {[%emt 0:00:36]} Rxf3 {[%emt 0:01:27]} 36. Bxf3 {[%emt 0:00:11]} Be3 {[%emt 0:00:33]} 37. a3 {[%emt 0:02:08]} Qd6 {[%emt 0:00:30]} 38. Qxf7 {[%emt 0:01:15]} Qf4 {[%emt 0:00:37]} 39. Qe7 {[%emt 0:00:57]} Qd4 {[%emt 0:00:25]} 40. Qc7 {[%emt 0:00:41]} Bf4 {[%emt 0:00:35]} 41. Qe7 {[%emt 0:00:18]} Bxh2 {[%emt 0:00:26]} 42. Rxh2 {[%emt 0:00:10]} Qd3+ {[%emt 0:00:40]} 43. Rc2 {[%emt 0:00:55]} a6 {[%emt 0:00:36]} 44. Qe2 {[%emt 0:00:02]} Qg6 {[%emt 0:00:23]} 45. Be4 {[%emt 0:00:53]} Qf6 {[%emt 0:00:42]} 46. Rc5 {[%emt 0:00:51]} Re8 {[%emt 0:00:23]} 47. Qc4 {[%emt 0:00:43]} Qd6 {[%emt 0:00:41]} 48. Bxc6 {[%emt 0:00:25]} 1-0

[Event "12th National Amateur Chess-ch 2025"]
[Site "Bihar"]
[Date "2025.03.26"]
[Round "3.18"]
[White "Arpita Singh"]
[Black "Vaishnavi Radhakrishnan"]
[Result "0-1"]
[Annotator "NA RC"]
[ECO "B72"]
[WhiteElo "1535"]
[BlackElo "1658"]
[PlyCount "112"]
[EventDate "2025.03.25"]
[EventCountry "IND"]
[SourceTitle "playchess.com"]
[Source "ChessBase"]
[SourceQuality "1"]
[TimeControl "5400+30"]

1. e4 {[%emt 0:00:04]} c5 {[%emt 0:00:38]} 2. Nf3 {[%emt 0:00:07]} d6 {[%emt 0:00:52]} 3. d4 {[%emt 0:00:08]} cxd4 {[%emt 0:00:21]} 4. Nxd4 {[%emt 0:00:10]} Nf6 {[%emt 0:00:48]} 5. Nc3 {[%emt 0:00:11]} g6 {[%emt 0:00:43]} 6. Be3 {[%emt 0:00:26]} Bg7 {[%emt 0:02:44]} 7. Bc4 {[%emt 0:01:49]} a6 {[%emt 0:01:57]} 8. a4 {[%emt 0:02:02]} Nbd7 {[%emt 0:01:27]} 9. O-O {[%emt 0:04:32]} O-O 10. Re1 {[%emt 0:08:01]} Nc5 {[%emt 0:04:16]} 11. f3 {[%emt 0:01:29]} Qc7 {[%emt 0:03:17]} 12. Qe2 {[%emt 0:05:14]} Nfd7 {[%emt 0:07:34]} 13. Nd5 {[%emt 0:16:48]} Qd8 {[%emt 0:00:46]} 14. b4 {[%emt 0:02:09]} e5 {[%emt 0:02:39]} 15. Nb3 {[%emt 0:01:32]} Nxb3 {[%emt 0:01:35]} 16. Bxb3 {[%emt 0:00:14]} h6 {[%emt 0:02:44]} 17. Qd2 {[%emt 0:03:49]} Kh7 {[%emt 0:01:00]} 18. a5 {[%emt 0:05:23]} f5 {[%emt 0:17:19]} 19. Rad1 {[%emt 0:04:41]} f4 {[%emt 0:04:14]} 20. Bb6 {[%emt 0:02:21]} Nxb6 {[%emt 0:19:16]} 21. Nxb6 {[%emt 0:00:19]} Rb8 {[%emt 0:00:33]} 22. Qxd6 {[%emt 0:01:07]} Qg5 {[%emt 0:00:23]} 23. Be6 {[%emt 0:06:21]} Bxe6 {[%emt 0:00:29]} 24. Qxe6 {[%emt 0:00:12]} Rbe8 {[%emt 0:00:32]} 25. Qd5 {[%emt 0:01:28]} Re7 {[%emt 0:06:42]} 26. Nd7 {[%emt 0:08:30]} Rc8 {[%emt 0:00:56]} 27. Nc5 {[%emt 0:03:55]} Qh4 {[%emt 0:01:22]} 28. Qd2 {[%emt 0:03:12]} Rec7 {[%emt 0:01:25]} 29. Rc1 {[%emt 0:05:51]} Qe7 {[%emt 0:03:36]} 30. Red1 {[%emt 0:01:28]} Qe8 {[%emt 0:01:35]} 31. Qe2 {[%emt 0:05:13]} Bf8 {[%emt 0:01:21]} 32. Nd3 {[%emt 0:00:30]} Qb5 {[%emt 0:00:38]} 33. Qe1 {[%emt 0:01:20]} Rxc2 {[%emt 0:04:30]} 34. Rxc2 {[%emt 0:01:00]} Rxc2 {[%emt 0:00:15]} 35. Qh4 {[%emt 0:03:45]} Bg7 {[%emt 0:01:38]} 36. Qe7 {[%emt 0:01:37]} Qc4 {[%emt 0:02:12]} 37. Qxb7 {[%emt 0:01:21]} Qd4+ {[%emt 0:00:37]} 38. Kh1 {[%emt 0:00:06]} Qxd3 {[%emt 0:00:14]} 39. Rg1 {[%emt 0:00:52]} Qe3 {[%emt 0:00:28]} 40. Qxa6 {[%emt 0:00:37]} Rc1 {[%emt 0:00:25]} 41. Rf1 {[%emt 0:00:27]} Qd2 {[%emt 0:00:35]} 42. h3 {[%emt 0:00:34]} Rc2 {[%emt 0:00:13]} 43. Rg1 {[%emt 0:00:19]} Qxb4 {[%emt 0:00:12]} 44. Ra1 {[%emt 0:00:44]} Qc5 {[%emt 0:02:12]} 45. Qf1 {[%emt 0:00:27]} Qa7 {[%emt 0:00:10]} 46. a6 {[%emt 0:00:23]} Rc8 {[%emt 0:00:27]} 47. Qg1 {[%emt 0:00:39]} Qxg1+ {[%emt 0:00:22]} 48. Kxg1 {[%emt 0:00:02]} Ra8 {[%emt 0:00:16]} 49. Kf2 {[%emt 0:00:05]} Bf8 {[%emt 0:00:36]} 50. Ke2 {[%emt 0:00:11]} Kg7 {[%emt 0:00:18]} 51. Kd3 {[%emt 0:00:08]} Bc5 {[%emt 0:00:28]} 52. Kc4 {[%emt 0:00:20]} Bd4 {[%emt 0:00:28]} 53. Ra2 {[%emt 0:00:18]} Kf7 {[%emt 0:00:19]} 54. Kb5 {[%emt 0:00:09]} Rc8 {[%emt 0:01:51]} 55. Ra4 {[%emt 0:02:01]} Ke6 {[%emt 0:01:44]} 56. Ra3 {[%emt 0:01:16]} Kd6 {[%emt 0:00:33]} 0-1

[Event "12th National Amateur Chess-ch 2025"]
[Site "Bihar"]
[Date "2025.03.26"]
[Round "3.19"]
[White "Disha U A"]
[Black "Gawande Devanshi"]
[Result "1/2-1/2"]
[Annotator "NA RC"]
[ECO "B82"]
[WhiteElo "1643"]
[BlackElo "1527"]
[PlyCount "90"]
[EventDate "2025.03.25"]
[EventCountry "IND"]
[SourceTitle "playchess.com"]
[Source "ChessBase"]
[SourceQuality "1"]
[TimeControl "5400+30"]

1. e4 {[%emt 0:00:30]} c5 {[%emt 0:00:30]} 2. Nf3 {[%emt 0:00:30]} Nc6 {[%emt 0:00:30]} 3. d4 {[%emt 0:00:30]} cxd4 {[%emt 0:00:30]} 4. Nxd4 {[%emt 0:00:30]} d6 {[%emt 0:00:30]} 5. Nc3 {[%emt 0:00:30]} Nf6 {[%emt 0:00:30]} 6. f4 {[%emt 0:00:30]} e6 {[%emt 0:00:30]} 7. Nf3 {[%emt 0:00:30]} Be7 {[%emt 0:00:30]} 8. Bd3 {[%emt 0:00:30]} a6 {[%emt 0:00:30]} 9. O-O {[%emt 0:00:30]} Bd7 {[%emt 0:00:30]} 10. Kh1 {[%emt 0:00:30]} Qc7 {[%emt 0:00:30]} 11. Qe2 {[%emt 0:00:30]} Rc8 {[%emt 0:00:30]} 12. Bd2 {[%emt 0:00:30]} b5 {[%emt 0:00:30]} 13. a3 {[%emt 0:00:30]} Na5 {[%emt 0:00:30]} 14. e5 {[%emt 0:00:30]} Ng4 {[%emt 0:00:30]} 15. h3 {[%emt 0:00:30]} Nh6 {[%emt 0:00:30]} 16. exd6 {[%emt 0:00:30]} Bxd6 {[%emt 0:00:30]} 17. Nd5 {[%emt 0:00:30]} Qb7 {[%emt 0:00:30]} 18. Bxa5 {[%emt 0:00:30]} Qxd5 {[%emt 0:00:30]} 19. Ne5 {[%emt 0:00:30]} Bxe5 {[%emt 0:00:30]} 20. fxe5 {[%emt 0:00:30]} O-O {[%emt 0:00:30]} 21. Rad1 {[%emt 0:00:30]} Qb7 {[%emt 0:00:30]} 22. Be4 {[%emt 0:00:30]} Bc6 {[%emt 0:00:30]} 23. Bxc6 {[%emt 0:00:30]} Qxc6 {[%emt 0:00:30]} 24. Bc3 {[%emt 0:00:30]} Nf5 {[%emt 0:00:30]} 25. Qf3 {[%emt 0:00:30]} Qc4 {[%emt 0:00:30]} 26. Rd3 {[%emt 0:00:30]} a5 {[%emt 0:00:30]} 27. Bxa5 {[%emt 0:00:30]} Qxc2 {[%emt 0:00:30]} 28. Bc3 {[%emt 0:00:30]} Qa4 {[%emt 0:00:30]} 29. Rfd1 {[%emt 0:00:30]} Qa7 {[%emt 0:00:30]} 30. Rd7 {[%emt 0:00:30]} Rc7 {[%emt 0:00:30]} 31. Rd8 {[%emt 0:00:30]} Rc8 {[%emt 0:00:30]} 32. Rxc8 {[%emt 0:00:30]} Rxc8 {[%emt 0:00:30]} 33. Qd3 {[%emt 0:00:30]} Qb8 {[%emt 0:00:30]} 34. Ba5 {[%emt 0:00:30]} h5 {[%emt 0:00:30]} 35. Bc3 {[%emt 0:00:30]} Qb7 {[%emt 0:00:30]} 36. Qf3 {[%emt 0:00:30]} Qc7 {[%emt 0:00:30]} 37. Rd3 {[%emt 0:00:30]} Rd8 {[%emt 0:00:30]} 38. b3 {[%emt 0:00:30]} Rxd3 {[%emt 0:00:30]} 39. Qxd3 {[%emt 0:00:30]} Qc5 {[%emt 0:00:30]} 40. a4 {[%emt 0:00:30]} bxa4 {[%emt 0:00:30]} 41. bxa4 {[%emt 0:00:30]} Qf2 {[%emt 0:00:30]} 42. Qf3 {[%emt 0:00:30]} Ng3+ {[%emt 0:00:30]} 43. Kh2 {[%emt 0:00:30]} Nf1+ {[%emt 0:00:30]} 44. Kh1 {[%emt 0:00:30]} Ng3+ {[%emt 0:00:30]} 45. Kh2 {[%emt 0:00:30]} Nf1+ {[%emt 0:00:30]} 1/2-1/2

[Event "12th National Amateur Chess-ch 2025"]
[Site "Bihar"]
[Date "2025.03.26"]
[Round "3.20"]
[White "Navya Goenka"]
[Black "Kashvy Sabharwal"]
[Result "0-1"]
[Annotator "NA RC"]
[ECO "C01"]
[WhiteElo "1499"]
[BlackElo "1640"]
[PlyCount "67"]
[EventDate "2025.03.25"]
[EventCountry "IND"]
[SourceTitle "playchess.com"]
[Source "ChessBase"]
[SourceQuality "1"]
[TimeControl "5400+30"]

1. e4 {[%emt 0:00:30]} e6 {[%emt 0:00:30]} 2. d4 {[%emt 0:00:30]} d5 {[%emt 0:00:30]} 3. exd5 {[%emt 0:00:30]} exd5 {[%emt 0:00:30]} 4. Nf3 {[%emt 0:00:30]} Bd6 {[%emt 0:00:30]} 5. Bd3 {[%emt 0:00:30]} Nc6 {[%emt 0:00:30]} 6. c3 {[%emt 0:00:30]} Bg4 {[%emt 0:00:30]} 7. Be3 {[%emt 0:00:30]} Nge7 {[%emt 0:00:30]} 8. Nbd2 {[%emt 0:00:30]} Qd7 {[%emt 0:00:30]} 9. Qc2 {[%emt 0:00:30]} O-O-O {[%emt 0:00:30]} 10. O-O-O {[%emt 0:00:30]} Kb8 {[%emt 0:00:30]} 11. h3 {[%emt 0:00:30]} Bh5 {[%emt 0:00:30]} 12. Kb1 {[%emt 0:00:30]} h6 {[%emt 0:00:30]} 13. Rc1 {[%emt 0:00:30]} f5 {[%emt 0:00:30]} 14. g3 {[%emt 0:00:30]} g5 {[%emt 0:00:30]} 15. Ne5 {[%emt 0:00:30]} Bxe5 {[%emt 0:00:30]} 16. dxe5 {[%emt 0:00:30]} Nxe5 {[%emt 0:00:30]} 17. Bf1 {[%emt 0:00:30]} f4 {[%emt 0:00:30]} 18. Ka1 {[%emt 0:00:30]} fxe3 {[%emt 0:00:30]} 19. fxe3 {[%emt 0:00:30]} Bg6 {[%emt 0:00:30]} 20. Qb3 {[%emt 0:00:30]} Nf5 {[%emt 0:00:30]} 21. e4 {[%emt 0:00:30]} Nxg3 {[%emt 0:00:30]} 22. Rg1 {[%emt 0:00:30]} Nxf1 {[%emt 0:00:30]} 23. Rgxf1 {[%emt 0:00:30]} dxe4 {[%emt 0:00:30]} 24. Nc4 {[%emt 0:00:30]} Nxc4 {[%emt 0:00:30]} 25. Qxc4 {[%emt 0:00:30]} Qd3 {[%emt 0:00:30]} 26. Qe6 {[%emt 0:00:30]} e3 {[%emt 0:00:30]} 27. Rfe1 {[%emt 0:00:30]} Rhe8 {[%emt 0:00:30]} 28. Qg4 {[%emt 0:00:30]} e2 {[%emt 0:00:30]} 29. a3 {[%emt 0:00:30]} Bf7 {[%emt 0:00:30]} 30. c4 {[%emt 0:00:30]} Re4 {[%emt 0:00:30]} 31. Qf5 {[%emt 0:00:30]} Bxc4 {[%emt 0:00:30]} 32. Qf6 {[%emt 0:00:30]} Red4 {[%emt 0:00:30]} 33. Qe7 {[%emt 0:00:30]} Qb3 {[%emt 0:00:30]} 34. Rxc4 {[%emt 0:00:30]} 0-1